[Event "Late-Titled-Tuesday-Blitz-January-23-2024"]
[Site "Chess.com"]
[Date "2024.01.23"]
[Round "7"]
[White "tptagain"]
[Black "dropstoneDP"]
[Result "1/2-1/2"]
[WhiteElo "2936"]
[BlackElo "3045"]
[TimeControl "180+1"]
[EndTime "15:16:09 PST"]
[Termination "Game drawn by repetition"]

1. Nf3 {[%clk 0:03:00.9]} 1... d5 {[%clk 0:02:44.1]} 2. e3 {[%clk 0:03:01]} 2...
c5 {[%clk 0:02:41.5]} 3. b3 {[%clk 0:03:01.2]} 3... Nf6 {[%clk 0:02:42]} 4. Bb2
{[%clk 0:03:01.4]} 4... g6 {[%clk 0:02:42.6]} 5. c4 {[%clk 0:02:59.4]} 5... dxc4
{[%clk 0:02:43.5]} 6. Bxc4 {[%clk 0:02:56.9]} 6... Bg7 {[%clk 0:02:43.9]} 7. O-O
{[%clk 0:02:57]} 7... O-O {[%clk 0:02:44.5]} 8. d4 {[%clk 0:02:56.2]} 8... cxd4
{[%clk 0:02:45.4]} 9. Nxd4 {[%clk 0:02:55.2]} 9... Bd7 {[%clk 0:02:46]} 10. Nd2
{[%clk 0:02:54.1]} 10... Nc6 {[%clk 0:02:46.6]} 11. N4f3 {[%clk 0:02:54.3]}
11... Rc8 {[%clk 0:02:41.2]} 12. Be2 {[%clk 0:02:52.7]} 12... Bf5 {[%clk
0:02:37.2]} 13. Nh4 {[%clk 0:02:11.6]} 13... Be6 {[%clk 0:02:26.9]} 14. Nhf3
{[%clk 0:01:57.1]} 14... Qa5 {[%clk 0:02:17.7]} 15. a3 {[%clk 0:01:53.9]} 15...
Rfd8 {[%clk 0:02:16.7]} 16. b4 {[%clk 0:01:53.2]} 16... Qb6 {[%clk 0:02:11.3]}
17. Qb1 {[%clk 0:01:51]} 17... Bf5 {[%clk 0:02:03.7]} 18. Qa2 {[%clk 0:01:49.9]}
18... Be6 {[%clk 0:01:58.2]} 19. Bc4 {[%clk 0:01:49.7]} 19... Bxc4 {[%clk
0:01:49]} 20. Nxc4 {[%clk 0:01:50.6]} 20... Qb5 {[%clk 0:01:49.3]} 21. Rac1
{[%clk 0:01:37.4]} 21... Qd5 {[%clk 0:01:46.8]} 22. Qb3 {[%clk 0:01:25.7]} 22...
b5 {[%clk 0:01:44.1]} 23. Ncd2 {[%clk 0:01:24.8]} 23... a5 {[%clk 0:01:44.5]}
24. Bxf6 {[%clk 0:01:20.4]} 24... Qxb3 {[%clk 0:01:34.8]} 25. Nxb3 {[%clk
0:01:19.9]} 25... Bxf6 {[%clk 0:01:35.4]} 26. bxa5 {[%clk 0:01:05.2]} 26... Bb2
{[%clk 0:01:32.8]} 27. Rc5 {[%clk 0:01:05.2]} 27... Bxa3 {[%clk 0:01:28.5]} 28.
Rxb5 {[%clk 0:01:05.3]} 28... Rb8 {[%clk 0:01:27.3]} 29. Rxb8 {[%clk 0:01:02.3]}
29... Rxb8 {[%clk 0:01:26.1]} 30. Nfd4 {[%clk 0:01:02.2]} 30... Na7 {[%clk
0:00:30.7]} 31. h3 {[%clk 0:00:53.4]} 31... e5 {[%clk 0:00:30.4]} 32. Ra1 {[%clk
0:00:37.8]} 32... Bf8 {[%clk 0:00:14.4]} 33. a6 {[%clk 0:00:31.6]} 33... exd4
{[%clk 0:00:14.1]} 34. Nxd4 {[%clk 0:00:32.5]} 34... Bg7 {[%clk 0:00:14.7]} 35.
Ra4 {[%clk 0:00:32.5]} 35... Bxd4 {[%clk 0:00:14.8]} 36. exd4 {[%clk 0:00:32.8]}
36... Kf8 {[%clk 0:00:14.9]} 37. g4 {[%clk 0:00:32.8]} 37... Rb6 {[%clk
0:00:13.6]} 38. Kg2 {[%clk 0:00:32.6]} 38... Ke7 {[%clk 0:00:14.1]} 39. Kf3
{[%clk 0:00:32.3]} 39... Kd6 {[%clk 0:00:13]} 40. Ke4 {[%clk 0:00:31.3]} 40...
Rb2 {[%clk 0:00:10]} 41. f3 {[%clk 0:00:27.4]} 41... f6 {[%clk 0:00:05.8]} 42.
h4 {[%clk 0:00:24.1]} 42... Re2+ {[%clk 0:00:05.5]} 43. Kf4 {[%clk 0:00:23.5]}
43... Rh2 {[%clk 0:00:05.4]} 44. Rb4 {[%clk 0:00:23.6]} 44... Ra2 {[%clk
0:00:05]} 45. Rb6+ {[%clk 0:00:22.7]} 45... Nc6 {[%clk 0:00:04.1]} 46. h5 {[%clk
0:00:18.7]} 46... Ra4 {[%clk 0:00:03.6]} 47. Ke3 {[%clk 0:00:14.5]} 47... gxh5
{[%clk 0:00:03]} 48. gxh5 {[%clk 0:00:14.9]} 48... h6 {[%clk 0:00:03.6]} 49. Ke4
{[%clk 0:00:12.5]} 49... Rxd4+ {[%clk 0:00:03.1]} 50. Kf5 {[%clk 0:00:13.2]}
50... Ra4 {[%clk 0:00:03.7]} 51. Kg6 {[%clk 0:00:13.4]} 51... Kc5 {[%clk
0:00:04.1]} 52. Rb1 {[%clk 0:00:12.8]} 52... Rxa6 {[%clk 0:00:04.5]} 53. Kxh6
{[%clk 0:00:13.1]} 53... Nd4 {[%clk 0:00:04.8]} 54. f4 {[%clk 0:00:12.7]} 54...
Kd5 {[%clk 0:00:05.3]} 55. Kg6 {[%clk 0:00:12.8]} 55... f5+ {[%clk 0:00:05.4]}
56. Kg5 {[%clk 0:00:12]} 56... Ke4 {[%clk 0:00:05.6]} 57. Re1+ {[%clk
0:00:11.8]} 57... Kd3 {[%clk 0:00:06]} 58. Rf1 {[%clk 0:00:11.2]} 58... Ke2
{[%clk 0:00:05.8]} 59. Rh1 {[%clk 0:00:10.2]} 59... Kf3 {[%clk 0:00:03.3]} 60.
h6 {[%clk 0:00:09.2]} 60... Ne6+ {[%clk 0:00:03]} 61. Kxf5 {[%clk 0:00:09.5]}
61... Nxf4 {[%clk 0:00:03.6]} 62. h7 {[%clk 0:00:09.3]} 62... Ra5+ {[%clk
0:00:04]} 63. Kf6 {[%clk 0:00:09.3]} 63... Ra6+ {[%clk 0:00:04.6]} 64. Kf5
{[%clk 0:00:09.2]} 64... Ra5+ {[%clk 0:00:05.2]} 65. Kf6 {[%clk 0:00:09.5]}
65... Ra6+ {[%clk 0:00:05.8]} 66. Kf5 {[%clk 0:00:07.1]} 1/2-1/2

[Event "Late-Titled-Tuesday-Blitz-January-23-2024"]
[Site "Chess.com"]
[Date "2024.01.23"]
[Round "7"]
[White "KNVB"]
[Black "AntonSmirnov"]
[Result "0-1"]
[WhiteElo "2771"]
[BlackElo "2989"]
[TimeControl "180+1"]
[EndTime "15:16:11 PST"]
[Termination "AntonSmirnov won on time"]

1. d4 {[%clk 0:03:00.9]} 1... d5 {[%clk 0:02:59.4]} 2. Bf4 {[%clk 0:03:00.9]}
2... Nf6 {[%clk 0:02:59.6]} 3. e3 {[%clk 0:02:58]} 3... c5 {[%clk 0:03:00.1]} 4.
c3 {[%clk 0:02:58.4]} 4... Nc6 {[%clk 0:03:00.7]} 5. Nd2 {[%clk 0:02:58.9]} 5...
Bg4 {[%clk 0:02:59.9]} 6. Qb3 {[%clk 0:02:57.9]} 6... Qc8 {[%clk 0:02:59]} 7.
Ngf3 {[%clk 0:02:57.1]} 7... e6 {[%clk 0:02:59.4]} 8. h3 {[%clk 0:02:42.6]} 8...
Bf5 {[%clk 0:02:58.2]} 9. Be2 {[%clk 0:02:42.5]} 9... h6 {[%clk 0:02:53.3]} 10.
O-O {[%clk 0:02:42.4]} 10... Be7 {[%clk 0:02:52.8]} 11. a4 {[%clk 0:02:42.3]}
11... O-O {[%clk 0:02:52.6]} 12. a5 {[%clk 0:02:38]} 12... a6 {[%clk 0:02:45]}
13. Ne5 {[%clk 0:02:31.7]} 13... Nd7 {[%clk 0:02:40.6]} 14. Ndf3 {[%clk
0:02:18.2]} 14... f6 {[%clk 0:02:33.8]} 15. Nxd7 {[%clk 0:02:03.6]} 15... Qxd7
{[%clk 0:02:33.6]} 16. c4 {[%clk 0:02:03.1]} 16... g5 {[%clk 0:02:09.8]} 17. Bg3
{[%clk 0:02:01.1]} 17... cxd4 {[%clk 0:01:59.1]} 18. cxd5 {[%clk 0:01:34.2]}
18... exd5 {[%clk 0:01:58.5]} 19. Rfd1 {[%clk 0:01:05.8]} 19... Rac8 {[%clk
0:01:34.1]} 20. Nxd4 {[%clk 0:00:58.7]} 20... Nxd4 {[%clk 0:01:34.2]} 21. Rxd4
{[%clk 0:00:59.6]} 21... Be6 {[%clk 0:01:34.7]} 22. Bf3 {[%clk 0:00:50.1]} 22...
Rc5 {[%clk 0:01:20.2]} 23. Rad1 {[%clk 0:00:43.7]} 23... Rd8 {[%clk 0:01:20]}
24. Qa2 {[%clk 0:00:27.4]} 24... Qb5 {[%clk 0:01:18.5]} 25. e4 {[%clk
0:00:09.4]} 25... Qxa5 {[%clk 0:01:12.1]} 26. Qxa5 {[%clk 0:00:10.3]} 26... Rxa5
{[%clk 0:01:12.3]} 27. exd5 {[%clk 0:00:11.2]} 27... Bf7 {[%clk 0:01:07.3]} 28.
Bc7 {[%clk 0:00:11.4]} 28... Rc5 {[%clk 0:01:07.2]} 29. d6 {[%clk 0:00:01.9]}
29... Re8 {[%clk 0:01:02.8]} 30. d7 {[%clk 0:00:01.4]} 30... Rxc7 {[%clk
0:01:02.2]} 31. dxe8=Q+ {[%clk 0:00:02]} 31... Bxe8 {[%clk 0:01:03]} 32. Re1
{[%clk 0:00:02.1]} 32... Kf8 {[%clk 0:01:02.9]} 33. Rde4 {[%clk 0:00:02]} 33...
Bf7 {[%clk 0:01:01.2]} 34. Rd4 {[%clk 0:00:02]} 34... Bb3 {[%clk 0:00:56.4]} 35.
Bd5 {[%clk 0:00:01.7]} 35... Bxd5 {[%clk 0:00:52]} 36. Rxd5 {[%clk 0:00:02]}
36... Kf7 {[%clk 0:00:50.6]} 37. Red1 {[%clk 0:00:02.4]} 37... Ke6 {[%clk
0:00:51.1]} 38. Kf1 {[%clk 0:00:02.7]} 38... Bb4 {[%clk 0:00:48.7]} 39. R5d4
{[%clk 0:00:02.9]} 39... a5 {[%clk 0:00:48.6]} 40. g4 {[%clk 0:00:02.9]} 40...
b6 {[%clk 0:00:41.3]} 41. Re4+ {[%clk 0:00:03.1]} 41... Kf7 {[%clk 0:00:41.5]}
42. Rd5 {[%clk 0:00:02.8]} 42... Be7 {[%clk 0:00:39.8]} 43. Kg2 {[%clk
0:00:02.2]} 43... Kf8 {[%clk 0:00:35.3]} 44. Rd3 {[%clk 0:00:02.2]} 44... Kf7
{[%clk 0:00:35.1]} 45. Rd5 {[%clk 0:00:02.7]} 45... Kf8 {[%clk 0:00:34.4]} 46.
Re6 {[%clk 0:00:03.1]} 46... Rb7 {[%clk 0:00:32.2]} 47. Rb5 {[%clk 0:00:02.2]}
47... Bd8 {[%clk 0:00:32.2]} 48. Rd6 {[%clk 0:00:01.9]} 48... Ke7 {[%clk
0:00:31.7]} 49. Rc6 {[%clk 0:00:01.9]} 49... Kd7 {[%clk 0:00:31]} 50. Rc3 {[%clk
0:00:02.3]} 50... Be7 {[%clk 0:00:30.2]} 51. Rd3+ {[%clk 0:00:02.2]} 51... Kc6
{[%clk 0:00:30.5]} 52. Rf5 {[%clk 0:00:02]} 52... b5 {[%clk 0:00:28.6]} 53. Rc3+
{[%clk 0:00:02.3]} 53... Kb6 {[%clk 0:00:28.8]} 54. Re3 {[%clk 0:00:02.3]} 54...
a4 {[%clk 0:00:27.9]} 55. Re6+ {[%clk 0:00:02.1]} 55... Ka5 {[%clk 0:00:28.4]}
56. Kf1 {[%clk 0:00:02.6]} 56... Kb4 {[%clk 0:00:26.5]} 57. Rf3 {[%clk
0:00:02.8]} 57... Rd7 {[%clk 0:00:23.9]} 58. Re4+ {[%clk 0:00:03.2]} 58... Ka5
{[%clk 0:00:23.8]} 59. Ke2 {[%clk 0:00:03.7]} 59... Rc7 {[%clk 0:00:22.4]} 60.
Rd3 {[%clk 0:00:04.1]} 60... Bb4 {[%clk 0:00:21.6]} 61. Kf3 {[%clk 0:00:03.1]}
61... Rc2 {[%clk 0:00:21.6]} 62. Re2 {[%clk 0:00:03.6]} 62... Rc4 {[%clk
0:00:21.5]} 63. Re8 {[%clk 0:00:03.8]} 63... Bc5 {[%clk 0:00:21.1]} 64. Ra8+
{[%clk 0:00:03.4]} 64... Kb4 {[%clk 0:00:21.3]} 65. Ra6 {[%clk 0:00:02.5]} 65...
Rf4+ {[%clk 0:00:21]} 66. Kg3 {[%clk 0:00:02.1]} 66... Bxf2+ {[%clk 0:00:21.3]}
67. Kg2 {[%clk 0:00:02.7]} 67... Bd4 {[%clk 0:00:21.4]} 68. Rd2 {[%clk
0:00:02.6]} 68... Kb3 {[%clk 0:00:20.6]} 69. Ra5 {[%clk 0:00:02.1]} 69... b4
{[%clk 0:00:20.6]} 70. Rd5 {[%clk 0:00:01.4]} 70... Bxb2 {[%clk 0:00:20.6]} 71.
Re2 {[%clk 0:00:01.1]} 71... Bc3 {[%clk 0:00:21.1]} 0-1

[Event "Late-Titled-Tuesday-Blitz-January-23-2024"]
[Site "Chess.com"]
[Date "2024.01.23"]
[Round "7"]
[White "NovakRatko"]
[Black "Fh2411"]
[Result "1-0"]
[WhiteElo "2362"]
[BlackElo "2567"]
[TimeControl "180+1"]
[EndTime "15:16:13 PST"]
[Termination "NovakRatko won on time"]

1. d4 {[%clk 0:02:59.3]} 1... d5 {[%clk 0:02:59.9]} 2. c4 {[%clk 0:02:59.9]}
2... c6 {[%clk 0:03:00.6]} 3. cxd5 {[%clk 0:03:00.5]} 3... cxd5 {[%clk
0:03:01.5]} 4. Nc3 {[%clk 0:03:01.4]} 4... Nf6 {[%clk 0:03:01]} 5. f3 {[%clk
0:03:02.3]} 5... Nc6 {[%clk 0:02:57.6]} 6. e4 {[%clk 0:03:02.5]} 6... e6 {[%clk
0:02:58.2]} 7. e5 {[%clk 0:03:02.4]} 7... Nd7 {[%clk 0:02:58.4]} 8. f4 {[%clk
0:03:03.3]} 8... g6 {[%clk 0:02:52.8]} 9. Nf3 {[%clk 0:03:02.9]} 9... a6 {[%clk
0:02:53.4]} 10. h4 {[%clk 0:03:02.3]} 10... h5 {[%clk 0:02:52.3]} 11. Bd3 {[%clk
0:03:02.5]} 11... b5 {[%clk 0:02:46.7]} 12. a3 {[%clk 0:03:02.4]} 12... Nb6
{[%clk 0:02:47.1]} 13. Qc2 {[%clk 0:03:02.3]} 13... Ne7 {[%clk 0:02:41.7]} 14.
Ng5 {[%clk 0:02:58]} 14... Bd7 {[%clk 0:02:38.8]} 15. O-O {[%clk 0:02:40.7]}
15... Bh6 {[%clk 0:02:37.3]} 16. f5 {[%clk 0:02:36.3]} 16... gxf5 {[%clk
0:02:32.6]} 17. g3 {[%clk 0:02:18.6]} 17... Rc8 {[%clk 0:02:26.1]} 18. Kh2
{[%clk 0:02:16.3]} 18... Nc4 {[%clk 0:02:04]} 19. Bf4 {[%clk 0:02:11.2]} 19...
Qb6 {[%clk 0:02:03.7]} 20. Qf2 {[%clk 0:02:07.9]} 20... Na5 {[%clk 0:01:46]} 21.
Be2 {[%clk 0:02:05.2]} 21... Bg7 {[%clk 0:01:33.8]} 22. Rfd1 {[%clk 0:01:43.1]}
22... Nb3 {[%clk 0:01:31.7]} 23. Rab1 {[%clk 0:01:42.3]} 23... a5 {[%clk
0:01:31.5]} 24. Bf3 {[%clk 0:01:37.2]} 24... b4 {[%clk 0:01:28.4]} 25. axb4
{[%clk 0:01:34.8]} 25... axb4 {[%clk 0:01:29.3]} 26. Ne2 {[%clk 0:01:19.1]}
26... Ba4 {[%clk 0:01:23.4]} 27. Qe3 {[%clk 0:01:13.8]} 27... Rc2 {[%clk
0:01:18.4]} 28. Kh3 {[%clk 0:00:51.5]} 28... Qc6 {[%clk 0:01:18.4]} 29. Nc1
{[%clk 0:00:44.1]} 29... Na5 {[%clk 0:01:04.8]} 30. Nd3 {[%clk 0:00:42.6]} 30...
Qb6 {[%clk 0:00:44.6]} 31. Rdc1 {[%clk 0:00:41.3]} 31... b3 {[%clk 0:00:44.1]}
32. Nc5 {[%clk 0:00:41.7]} 32... Qb5 {[%clk 0:00:38]} 33. Ra1 {[%clk 0:00:41.6]}
33... Nc4 {[%clk 0:00:37.5]} 34. Qd3 {[%clk 0:00:36.3]} 34... Rxc1 {[%clk
0:00:29.1]} 35. Rxc1 {[%clk 0:00:34.6]} 35... Nxb2 {[%clk 0:00:27.1]} 36. Qc3
{[%clk 0:00:20.8]} 36... Nc4 {[%clk 0:00:25.5]} 37. Rb1 {[%clk 0:00:21.3]} 37...
O-O {[%clk 0:00:21.9]} 38. Nxa4 {[%clk 0:00:20.9]} 38... Qxa4 {[%clk 0:00:21.6]}
39. Qxb3 {[%clk 0:00:21.5]} 39... Qxb3 {[%clk 0:00:20.2]} 40. Rxb3 {[%clk
0:00:21.8]} 40... Nc6 {[%clk 0:00:20.9]} 41. Rd3 {[%clk 0:00:20.6]} 41... Rb8
{[%clk 0:00:19.7]} 42. Bxh5 {[%clk 0:00:21.1]} 42... Nd8 {[%clk 0:00:16]} 43.
Rd1 {[%clk 0:00:14.2]} 43... Bf8 {[%clk 0:00:13.9]} 44. Ra1 {[%clk 0:00:14.3]}
44... Be7 {[%clk 0:00:08.5]} 45. Ra7 {[%clk 0:00:11.3]} 45... Kf8 {[%clk
0:00:07.6]} 46. Nh7+ {[%clk 0:00:11]} 46... Ke8 {[%clk 0:00:07.1]} 47. Bg5
{[%clk 0:00:11.2]} 47... Nc6 {[%clk 0:00:03.8]} 48. Rc7 {[%clk 0:00:09.9]} 48...
N4a5 {[%clk 0:00:03.2]} 49. Bxe7 {[%clk 0:00:08.7]} 49... Nxe7 {[%clk
0:00:02.3]} 50. Nf6+ {[%clk 0:00:09.2]} 50... Kf8 {[%clk 0:00:03]} 51. Nd7+
{[%clk 0:00:09.2]} 51... Kg7 {[%clk 0:00:02.7]} 52. Nxb8 {[%clk 0:00:10.1]}
52... Ng6 {[%clk 0:00:02.8]} 53. Bxg6 {[%clk 0:00:10]} 53... Kxg6 {[%clk
0:00:03.7]} 54. Nc6 {[%clk 0:00:10.4]} 54... Nb3 {[%clk 0:00:04.2]} 55. Nd8
{[%clk 0:00:10.8]} 55... Nxd4 {[%clk 0:00:03.8]} 56. Nxf7 {[%clk 0:00:11.3]}
56... Nf3 {[%clk 0:00:04]} 57. Nd6 {[%clk 0:00:10.8]} 57... Nxe5 {[%clk
0:00:04]} 58. h5+ {[%clk 0:00:10.2]} 58... Kxh5 {[%clk 0:00:04.2]} 59. Re7
{[%clk 0:00:10.8]} 59... d4 {[%clk 0:00:03.1]} 60. Rxe6 {[%clk 0:00:11.2]} 60...
Ng4 {[%clk 0:00:04]} 61. Nxf5 {[%clk 0:00:10.9]} 61... d3 {[%clk 0:00:04.6]} 62.
Rd6 {[%clk 0:00:11.3]} 62... Kg5 {[%clk 0:00:03.6]} 63. Rd5 {[%clk 0:00:11.3]}
63... d2 {[%clk 0:00:01]} 64. Ne3+ {[%clk 0:00:10.6]} 1-0

[Event "Late-Titled-Tuesday-Blitz-January-23-2024"]
[Site "Chess.com"]
[Date "2024.01.23"]
[Round "7"]
[White "Jospem"]
[Black "GMBenjaminBok"]
[Result "1-0"]
[WhiteElo "3090"]
[BlackElo "2882"]
[TimeControl "180+1"]
[EndTime "15:16:25 PST"]
[Termination "Jospem won by resignation"]

1. e4 {[%clk 0:02:54.9]} 1... e5 {[%clk 0:02:58.9]} 2. Nf3 {[%clk 0:02:54.8]}
2... Nc6 {[%clk 0:02:59.5]} 3. Bb5 {[%clk 0:02:55.1]} 3... Nf6 {[%clk
0:02:59.8]} 4. d3 {[%clk 0:02:55.5]} 4... Bc5 {[%clk 0:02:59.7]} 5. Ba4 {[%clk
0:02:56.3]} 5... O-O {[%clk 0:02:58.9]} 6. Bg5 {[%clk 0:02:56.7]} 6... h6 {[%clk
0:02:58]} 7. Bh4 {[%clk 0:02:57.3]} 7... Be7 {[%clk 0:02:54.4]} 8. Nbd2 {[%clk
0:02:57]} 8... d6 {[%clk 0:02:53]} 9. c3 {[%clk 0:02:55.3]} 9... Nh5 {[%clk
0:02:43.1]} 10. Bg3 {[%clk 0:02:53.7]} 10... g6 {[%clk 0:02:40.3]} 11. O-O
{[%clk 0:02:48.5]} 11... Bd7 {[%clk 0:02:37.5]} 12. h3 {[%clk 0:02:46.5]} 12...
Bg5 {[%clk 0:02:32.2]} 13. Nxg5 {[%clk 0:02:29]} 13... hxg5 {[%clk 0:02:17.5]}
14. d4 {[%clk 0:02:29.2]} 14... exd4 {[%clk 0:02:08]} 15. Bxc6 {[%clk
0:02:28.7]} 15... Bxc6 {[%clk 0:02:06.9]} 16. cxd4 {[%clk 0:02:28.9]} 16... Qf6
{[%clk 0:01:57.5]} 17. d5 {[%clk 0:02:19.1]} 17... Bb5 {[%clk 0:01:54.9]} 18.
Re1 {[%clk 0:02:19.7]} 18... Nxg3 {[%clk 0:01:52.6]} 19. fxg3 {[%clk 0:02:20.6]}
19... Qxb2 {[%clk 0:01:52.4]} 20. Nf3 {[%clk 0:02:17.1]} 20... Qf6 {[%clk
0:01:43.7]} 21. Qd2 {[%clk 0:02:10.3]} 21... c5 {[%clk 0:01:24.4]} 22. e5 {[%clk
0:01:33.1]} 22... dxe5 {[%clk 0:01:24]} 23. Nxg5 {[%clk 0:01:33.6]} 23... e4
{[%clk 0:01:01.3]} 24. Nxe4 {[%clk 0:01:27.9]} 24... Qd4+ {[%clk 0:01:01.2]} 25.
Qf2 {[%clk 0:01:26.6]} 25... Rad8 {[%clk 0:00:52.1]} 26. Rad1 {[%clk 0:01:21.9]}
26... Qxf2+ {[%clk 0:00:51.6]} 27. Kxf2 {[%clk 0:01:22.8]} 27... b6 {[%clk
0:00:51.6]} 28. g4 {[%clk 0:01:15.8]} 28... f5 {[%clk 0:00:46]} 29. gxf5 {[%clk
0:01:16.7]} 29... Rxf5+ {[%clk 0:00:45.1]} 30. Kg1 {[%clk 0:01:17.3]} 30... Bc4
{[%clk 0:00:36.1]} 31. Nc3 {[%clk 0:01:17.7]} 31... b5 {[%clk 0:00:32]} 32. Re6
{[%clk 0:01:04.7]} 32... Kg7 {[%clk 0:00:28.3]} 33. Rc6 {[%clk 0:01:04.5]} 33...
Bxd5 {[%clk 0:00:10.8]} 34. Rc7+ {[%clk 0:00:51.8]} 34... Kh6 {[%clk 0:00:10]}
35. Nxb5 {[%clk 0:00:34.8]} 35... Rb8 {[%clk 0:00:06.4]} 36. Nc3 {[%clk
0:00:34.8]} 36... Ba8 {[%clk 0:00:03.7]} 37. Rd2 {[%clk 0:00:28.9]} 37... Re5
{[%clk 0:00:02.7]} 38. Kh2 {[%clk 0:00:24.6]} 38... Re3 {[%clk 0:00:03.1]} 39.
Rxc5 {[%clk 0:00:23.5]} 39... Rb6 {[%clk 0:00:02.5]} 40. Ne2 {[%clk 0:00:20.9]}
40... Rbe6 {[%clk 0:00:02]} 41. Nf4 {[%clk 0:00:17.5]} 41... Rf6 {[%clk
0:00:01.7]} 42. Nd5 {[%clk 0:00:08.9]} 42... Bxd5 {[%clk 0:00:01.7]} 43. Rcxd5
{[%clk 0:00:09.8]} 43... Ra3 {[%clk 0:00:01.9]} 44. Rd8 {[%clk 0:00:07.1]} 44...
Rfa6 {[%clk 0:00:02.2]} 45. R2d7 {[%clk 0:00:05.9]} 45... Rxa2 {[%clk
0:00:02.1]} 46. h4 {[%clk 0:00:06.5]} 46... Kh5 {[%clk 0:00:01.8]} 47. Rd4
{[%clk 0:00:06.7]} 47... g5 {[%clk 0:00:01.4]} 48. R4d5 {[%clk 0:00:05]} 48...
R6a5 {[%clk 0:00:01.3]} 49. Rh8+ {[%clk 0:00:04.2]} 49... Kg4 {[%clk 0:00:01.3]}
50. Rd4+ {[%clk 0:00:04.5]} 50... Kf5 {[%clk 0:00:01.7]} 51. Rf8+ {[%clk
0:00:04.5]} 51... Kg6 {[%clk 0:00:01.8]} 52. Rg8+ {[%clk 0:00:04.6]} 52... Kf7
{[%clk 0:00:02]} 53. Rxg5 {[%clk 0:00:03.6]} 53... Rxg5 {[%clk 0:00:01.6]} 54.
hxg5 {[%clk 0:00:04.5]} 54... Kg6 {[%clk 0:00:02.2]} 55. Rd5 {[%clk 0:00:04.9]}
55... Ra3 {[%clk 0:00:02.4]} 56. g3 {[%clk 0:00:05.1]} 56... a5 {[%clk
0:00:02.7]} 57. Kh3 {[%clk 0:00:05.6]} 57... Ra4 {[%clk 0:00:03.3]} 58. Rb5
{[%clk 0:00:05]} 58... Kh5 {[%clk 0:00:02.8]} 59. g4+ {[%clk 0:00:03.9]} 59...
Kg6 {[%clk 0:00:02.5]} 60. Kh4 {[%clk 0:00:04.2]} 60... Ra1 {[%clk 0:00:03.1]}
61. Rb6+ {[%clk 0:00:04.5]} 61... Kg7 {[%clk 0:00:03.6]} 62. g6 {[%clk
0:00:05.2]} 62... Kh6 {[%clk 0:00:03.9]} 63. Ra6 {[%clk 0:00:01.6]} 63... Rh1+
{[%clk 0:00:03]} 64. Kg3 {[%clk 0:00:02.4]} 64... Rb1 {[%clk 0:00:03.6]} 65. Kf4
{[%clk 0:00:02.9]} 65... Rb4+ {[%clk 0:00:03.5]} 66. Kf5 {[%clk 0:00:03.7]}
66... Rb5+ {[%clk 0:00:03.6]} 67. Kf6 {[%clk 0:00:04.4]} 67... Rb1 {[%clk
0:00:03.7]} 68. g5+ {[%clk 0:00:04.3]} 68... Kh5 {[%clk 0:00:04.3]} 69. Kg7
{[%clk 0:00:04.3]} 69... Rb7+ {[%clk 0:00:04.3]} 70. Kf6 {[%clk 0:00:04.5]}
70... a4 {[%clk 0:00:03.9]} 71. g7 {[%clk 0:00:04]} 71... Rb8 {[%clk 0:00:04.3]}
72. Ra7 {[%clk 0:00:03.3]} 72... a3 {[%clk 0:00:02.8]} 73. Kf7 {[%clk
0:00:03.6]} 73... a2 {[%clk 0:00:01.7]} 74. g8=Q {[%clk 0:00:03.9]} 74... Rxg8
{[%clk 0:00:01.7]} 75. Kxg8 {[%clk 0:00:03.7]} 75... Kxg5 {[%clk 0:00:01.9]} 76.
Rxa2 {[%clk 0:00:04.2]} 1-0